[Event "*** Titled Tuesday 3|2 Blitz"]
[Site "Chess.com"]
[Date "2015.07.07"]
[Round "6"]
[White "armago"]
[Black "1random"]
[Result "1-0"]
[WhiteElo "2149"]
[BlackElo "1987"]
[TimeControl "180+2"]
[EndTime "12:17:21 PDT"]
[Termination "armago won by checkmate"]

1. d4 {[%clk 0:03:00.4]} 1... Nf6 {[%clk 0:02:57.6]} 2. c4 {[%clk 0:03:00.9]}
2... e6 {[%clk 0:02:53.7]} 3. Nc3 {[%clk 0:03:01.6]} 3... d5 {[%clk 0:02:52.2]}
4. Nf3 {[%clk 0:03:01.6]} 4... dxc4 {[%clk 0:02:52.1]} 5. e4 {[%clk 0:03:00.3]}
5... Bb4 {[%clk 0:02:52.3]} 6. e5 {[%clk 0:02:54.9]} 6... Nd5 {[%clk 0:02:51]}
7. Bd2 {[%clk 0:02:55.7]} 7... Nb6 {[%clk 0:02:52.2]} 8. Qc2 {[%clk 0:02:43.9]}
8... c5 {[%clk 0:02:48.6]} 9. Ne4 {[%clk 0:02:37.9]} 9... Bxd2+ {[%clk
0:02:43.4]} 10. Qxd2 {[%clk 0:02:37]} 10... cxd4 {[%clk 0:02:43.9]} 11. Nd6+
{[%clk 0:02:37.2]} 11... Kf8 {[%clk 0:02:43.4]} 12. Qxd4 {[%clk 0:02:37.2]}
12... Nc6 {[%clk 0:02:44.5]} 13. Qf4 {[%clk 0:02:38.7]} 13... Qe7 {[%clk
0:02:43.2]} 14. O-O-O {[%clk 0:02:28.9]} 14... Nd5 {[%clk 0:02:43.2]} 15. Qg3
{[%clk 0:02:18.2]} 15... c3 {[%clk 0:02:25.6]} 16. Ng5 {[%clk 0:02:05.6]} 16...
cxb2+ {[%clk 0:02:23.9]} 17. Kxb2 {[%clk 0:02:03.5]} 17... Nxe5 {[%clk
0:02:18.7]} 18. Qxe5 {[%clk 0:02:01.4]} 18... f6 {[%clk 0:02:19.7]} 19. Qg3
{[%clk 0:01:46.2]} 19... fxg5 {[%clk 0:02:11.7]} 20. Bc4 {[%clk 0:01:44.5]}
20... Qf6+ {[%clk 0:02:00.6]} 21. Kb3 {[%clk 0:01:39.6]} 21... a5 {[%clk
0:01:47.6]} 22. Ne4 {[%clk 0:01:33.4]} 22... a4+ {[%clk 0:01:48.1]} 23. Ka3
{[%clk 0:01:32.9]} 23... Qf4 {[%clk 0:01:36.1]} 24. Bxd5 {[%clk 0:01:14]} 24...
exd5 {[%clk 0:01:31.6]} 25. Nxg5 {[%clk 0:01:09.1]} 25... Qxg3+ {[%clk
0:01:06.8]} 26. fxg3 {[%clk 0:01:09.4]} 26... h6 {[%clk 0:01:06.7]} 27. Rxd5
{[%clk 0:01:00.8]} 27... Ke7 {[%clk 0:00:55.3]} 28. Re1+ {[%clk 0:00:59.5]}
28... Kf6 {[%clk 0:00:54.2]} 29. Nf3 {[%clk 0:00:53.9]} 29... Be6 {[%clk
0:00:48.7]} 30. Rd6 {[%clk 0:00:53.8]} 30... Rhe8 {[%clk 0:00:35.8]} 31. Nd4
{[%clk 0:00:54.3]} 31... Rad8 {[%clk 0:00:27.4]} 32. Rexe6+ {[%clk 0:00:45.5]}
32... Rxe6 {[%clk 0:00:20.8]} 33. Rxe6+ {[%clk 0:00:42.9]} 33... Kf7 {[%clk
0:00:21.5]} 34. Re4 {[%clk 0:00:44]} 34... b5 {[%clk 0:00:19.5]} 35. Kb4 {[%clk
0:00:39.3]} 35... Rc8 {[%clk 0:00:14.7]} 36. Kxb5 {[%clk 0:00:39.3]} 36... a3
{[%clk 0:00:15.9]} 37. Kb4 {[%clk 0:00:39.7]} 37... Rc1 {[%clk 0:00:15.8]} 38.
Kxa3 {[%clk 0:00:39.1]} 38... Rg1 {[%clk 0:00:17.4]} 39. Re2 {[%clk 0:00:39.1]}
39... Rh1 {[%clk 0:00:17.6]} 40. h3 {[%clk 0:00:39.9]} 40... Rf1 {[%clk
0:00:15.9]} 41. Nf3 {[%clk 0:00:38.8]} 41... Kf6 {[%clk 0:00:15.4]} 42. g4
{[%clk 0:00:39.8]} 42... Rb1 {[%clk 0:00:14.5]} 43. Ka4 {[%clk 0:00:40.4]} 43...
Kg6 {[%clk 0:00:11.9]} 44. a3 {[%clk 0:00:41]} 44... Rb8 {[%clk 0:00:11.7]} 45.
Re5 {[%clk 0:00:34.5]} 45... Rb7 {[%clk 0:00:10.1]} 46. Rb5 {[%clk 0:00:34.5]}
46... Ra7+ {[%clk 0:00:03.1]} 47. Kb4 {[%clk 0:00:35.2]} 47... Rd7 {[%clk
0:00:05]} 48. a4 {[%clk 0:00:34.3]} 48... Rd1 {[%clk 0:00:05.3]} 49. a5 {[%clk
0:00:33.9]} 49... Rb1+ {[%clk 0:00:06.6]} 50. Kc5 {[%clk 0:00:34.6]} 50... Rc1+
{[%clk 0:00:08.1]} 51. Kb6 {[%clk 0:00:35.6]} 51... Ra1 {[%clk 0:00:10]} 52. a6
{[%clk 0:00:36.4]} 52... Kh7 {[%clk 0:00:11.4]} 53. a7 {[%clk 0:00:35.8]} 53...
Rd1 {[%clk 0:00:13.1]} 54. a8=Q {[%clk 0:00:17.5]} 54... Rd6+ {[%clk 0:00:12.6]}
55. Qc6 {[%clk 0:00:17.1]} 55... Rf6 {[%clk 0:00:14.5]} 56. Qxf6 {[%clk
0:00:17.5]} 56... gxf6 {[%clk 0:00:16.3]} 57. Kc6 {[%clk 0:00:18.8]} 57... Kg6
{[%clk 0:00:18.2]} 58. Kd6 {[%clk 0:00:20.4]} 58... Kf7 {[%clk 0:00:19.5]} 59.
Nh4 {[%clk 0:00:20.4]} 59... Kg7 {[%clk 0:00:20.5]} 60. Ke6 {[%clk 0:00:21.1]}
60... h5 {[%clk 0:00:20.9]} 61. Rb7+ {[%clk 0:00:22.6]} 61... Kh6 {[%clk
0:00:21.5]} 62. Nf5+ {[%clk 0:00:21.7]} 62... Kg5 {[%clk 0:00:22.4]} 63. gxh5
{[%clk 0:00:22.4]} 63... Kxh5 {[%clk 0:00:20.8]} 64. g4+ {[%clk 0:00:20]} 64...
Kg5 {[%clk 0:00:21.9]} 65. Rg7+ {[%clk 0:00:20.8]} 65... Kf4 {[%clk 0:00:22.3]}
66. Kxf6 {[%clk 0:00:22.2]} 66... Ke4 {[%clk 0:00:23.8]} 67. g5 {[%clk
0:00:23.3]} 67... Kd5 {[%clk 0:00:25.7]} 68. g6 {[%clk 0:00:24.6]} 68... Ke4
{[%clk 0:00:27.6]} 69. Re7+ {[%clk 0:00:25.9]} 69... Kd5 {[%clk 0:00:29.5]} 70.
g7 {[%clk 0:00:27.4]} 70... Kc6 {[%clk 0:00:31.3]} 71. g8=Q {[%clk 0:00:28]}
71... Kc5 {[%clk 0:00:32.2]} 72. Qc8+ {[%clk 0:00:28.9]} 72... Kb4 {[%clk
0:00:32.6]} 73. Rb7+ {[%clk 0:00:29.4]} 73... Ka5 {[%clk 0:00:34.5]} 74. Qa8#
{[%clk 0:00:30.4]} 1-0

[Event "*** Titled Tuesday 3|2 Blitz"]
[Site "Chess.com"]
[Date "2015.07.07"]
[Round "6"]
[White "MasterLeif"]
[Black "wanyaland"]
[Result "1-0"]
[WhiteElo "2277"]
[BlackElo "2165"]
[TimeControl "180+2"]
[EndTime "12:17:39 PDT"]
[Termination "MasterLeif won by resignation"]

1. e4 {[%clk 0:03:01.9]} 1... c5 {[%clk 0:03:00.2]} 2. Nf3 {[%clk 0:03:03.1]}
2... e6 {[%clk 0:03:01.4]} 3. d4 {[%clk 0:03:04.4]} 3... cxd4 {[%clk 0:03:02.7]}
4. Nxd4 {[%clk 0:03:06.3]} 4... Nf6 {[%clk 0:03:03.2]} 5. Nc3 {[%clk 0:03:06.9]}
5... d6 {[%clk 0:02:56.8]} 6. g4 {[%clk 0:03:07.4]} 6... a6 {[%clk 0:02:57.5]}
7. g5 {[%clk 0:03:06.4]} 7... Nfd7 {[%clk 0:02:58.3]} 8. h4 {[%clk 0:03:06.1]}
8... Qc7 {[%clk 0:02:59.2]} 9. Be3 {[%clk 0:03:04.7]} 9... b5 {[%clk 0:02:58.7]}
10. Qd2 {[%clk 0:03:04.7]} 10... Bb7 {[%clk 0:02:59.5]} 11. Bg2 {[%clk
0:03:05.7]} 11... Ne5 {[%clk 0:02:59.9]} 12. O-O-O {[%clk 0:03:04]} 12... Nbd7
{[%clk 0:02:58.9]} 13. Kb1 {[%clk 0:03:00.9]} 13... Rb8 {[%clk 0:02:55.4]} 14.
f4 {[%clk 0:02:52.8]} 14... Nc4 {[%clk 0:02:55.7]} 15. Qe2 {[%clk 0:02:54.2]}
15... Nc5 {[%clk 0:02:54.8]} 16. Bc1 {[%clk 0:02:53]} 16... Be7 {[%clk
0:02:49.4]} 17. Ndxb5 {[%clk 0:02:52.9]} 17... axb5 {[%clk 0:02:46.5]} 18. Nxb5
{[%clk 0:02:54.8]} 18... Qb6 {[%clk 0:02:47.1]} 19. Qxc4 {[%clk 0:02:55.7]}
19... Ba6 {[%clk 0:02:47.2]} 20. a4 {[%clk 0:02:55.8]} 20... Nxa4 {[%clk
0:02:44.7]} 21. Qxa4 {[%clk 0:02:56.4]} 21... Bxb5 {[%clk 0:02:45.1]} 22. Qd4
{[%clk 0:02:51.1]} 22... Qxd4 {[%clk 0:02:41.3]} 23. Rxd4 {[%clk 0:02:53]} 23...
Bd7 {[%clk 0:02:35.7]} 24. b3 {[%clk 0:02:47]} 24... O-O {[%clk 0:02:34]} 25.
Bb2 {[%clk 0:02:48]} 25... Rfc8 {[%clk 0:02:34.5]} 26. Rhd1 {[%clk 0:02:47.1]}
26... Rc7 {[%clk 0:02:32]} 27. Ba3 {[%clk 0:02:42]} 27... Rbc8 {[%clk
0:02:32.8]} 28. R1d2 {[%clk 0:02:34.9]} 28... Kf8 {[%clk 0:02:10.2]} 29. Bxd6
{[%clk 0:02:32.5]} 29... Bxd6 {[%clk 0:02:11.2]} 30. Rxd6 {[%clk 0:02:34.4]}
30... Ke7 {[%clk 0:02:12.8]} 31. e5 {[%clk 0:02:33]} 31... Be8 {[%clk 0:02:14]}
32. Be4 {[%clk 0:02:28.2]} 32... h6 {[%clk 0:02:12.5]} 33. Kb2 {[%clk
0:02:19.4]} 33... Rc3 {[%clk 0:02:12.1]} 34. R6d3 {[%clk 0:02:09]} 34... R3c5
{[%clk 0:02:08.3]} 35. b4 {[%clk 0:02:07.5]} 35... Rc4 {[%clk 0:02:08.6]} 36.
Rd4 {[%clk 0:02:05.9]} 36... Rc3 {[%clk 0:02:09.7]} 37. Bd3 {[%clk 0:02:03.6]}
37... hxg5 {[%clk 0:02:08.5]} 38. hxg5 {[%clk 0:02:04.5]} 38... R8c7 {[%clk
0:02:00.9]} 39. b5 {[%clk 0:02:02.8]} 39... R3c5 {[%clk 0:01:59.6]} 40. Rb4
{[%clk 0:02:03.1]} 40... Rb7 {[%clk 0:02:00.3]} 41. c4 {[%clk 0:01:59.4]} 41...
Rb6 {[%clk 0:01:57.2]} 42. Be4 {[%clk 0:01:58.8]} 42... f6 {[%clk 0:01:56.7]}
43. gxf6+ {[%clk 0:01:57.2]} 43... gxf6 {[%clk 0:01:57.4]} 44. exf6+ {[%clk
0:01:59.1]} 44... Kxf6 {[%clk 0:01:58.2]} 45. Rh2 {[%clk 0:01:34.2]} 45... Ke7
{[%clk 0:01:44.1]} 46. Kb3 {[%clk 0:01:27.6]} 46... Bh5 {[%clk 0:01:41.5]} 47.
f5 {[%clk 0:01:24.3]} 47... Bf7 {[%clk 0:01:38.2]} 48. Rh7 {[%clk 0:01:16.8]}
48... Kf6 {[%clk 0:01:21.2]} 49. fxe6 {[%clk 0:01:05.1]} 49... Bxe6 {[%clk
0:01:21.6]} 50. Bd5 {[%clk 0:01:01.2]} 50... Kg6 {[%clk 0:01:12.7]} 51. Be4+
{[%clk 0:00:57.3]} 51... Kf6 {[%clk 0:01:10.9]} 52. Bc6 {[%clk 0:00:52.8]} 52...
Rg5 {[%clk 0:00:53.5]} 53. Rb7 {[%clk 0:00:46.5]} 53... Rg3+ {[%clk 0:00:50.6]}
54. Ka4 {[%clk 0:00:40.9]} 54... Rxb7 {[%clk 0:00:49.2]} 55. Bxb7 {[%clk
0:00:42.8]} 55... Ke5 {[%clk 0:00:45.2]} 56. c5 {[%clk 0:00:35.6]} 56... Rc3
{[%clk 0:00:45.5]} 57. c6 {[%clk 0:00:30.7]} 57... Kd6 {[%clk 0:00:45.8]} 58.
Ka5 {[%clk 0:00:23.1]} 58... Kc5 {[%clk 0:00:43.9]} 59. c7 {[%clk 0:00:17.3]}
59... Kd6 {[%clk 0:00:42.7]} 60. c8=Q {[%clk 0:00:12.7]} 60... Bxc8 {[%clk
0:00:42.3]} 61. Bxc8 {[%clk 0:00:14.6]} 61... Rxc8 {[%clk 0:00:42.7]} 62. Kb6
{[%clk 0:00:15.2]} 62... Rb8+ {[%clk 0:00:37]} 63. Ka7 {[%clk 0:00:16]} 63...
Rh8 {[%clk 0:00:36]} 64. b6 {[%clk 0:00:16.3]} 64... Kc5 {[%clk 0:00:34.7]} 65.
Rb1 {[%clk 0:00:14.5]} 65... Rh2 {[%clk 0:00:35]} 66. Rc1+ {[%clk 0:00:12.1]}
66... Kd6 {[%clk 0:00:34.8]} 67. b7 {[%clk 0:00:12.9]} 67... Ra2+ {[%clk
0:00:34.7]} 68. Kb8 {[%clk 0:00:14.2]} 68... Kd7 {[%clk 0:00:35.8]} 69. Rd1+
{[%clk 0:00:14.2]} 69... Ke7 {[%clk 0:00:36.1]} 70. Rd4 {[%clk 0:00:14.1]} 70...
Ra1 {[%clk 0:00:36.1]} 71. Kc7 {[%clk 0:00:14.9]} 71... Rc1+ {[%clk 0:00:36.6]}
72. Kb6 {[%clk 0:00:15.8]} 72... Rb1+ {[%clk 0:00:37.8]} 73. Kc6 {[%clk
0:00:16.7]} 73... Rc1+ {[%clk 0:00:38.3]} 74. Kb5 {[%clk 0:00:17.8]} 74... Rb1+
{[%clk 0:00:37.6]} 75. Rb4 {[%clk 0:00:18.1]} 1-0

[Event "*** Titled Tuesday 3|2 Blitz"]
[Site "Chess.com"]
[Date "2015.07.07"]
[Round "6"]
[White "GeorgMeier"]
[Black "viditchess"]
[Result "1/2-1/2"]
[WhiteElo "2716"]
[BlackElo "2429"]
[TimeControl "180+2"]
[EndTime "12:18:28 PDT"]
[Termination "Game drawn by repetition"]

1. Nf3 {[%clk 0:03:01.9]} 1... Nf6 {[%clk 0:03:00]} 2. g3 {[%clk 0:03:03]} 2...
c5 {[%clk 0:02:56.8]} 3. Bg2 {[%clk 0:03:04]} 3... Nc6 {[%clk 0:02:58.7]} 4. c4
{[%clk 0:03:02.5]} 4... g6 {[%clk 0:02:58.2]} 5. Nc3 {[%clk 0:03:02]} 5... Bg7
{[%clk 0:02:59.3]} 6. d4 {[%clk 0:03:03.1]} 6... cxd4 {[%clk 0:03:00.1]} 7. Nxd4
{[%clk 0:03:05]} 7... O-O {[%clk 0:03:01.6]} 8. O-O {[%clk 0:03:06]} 8... Qa5
{[%clk 0:03:03.3]} 9. e3 {[%clk 0:03:06.6]} 9... Ne5 {[%clk 0:02:56.4]} 10. Qe2
{[%clk 0:02:45.4]} 10... d6 {[%clk 0:02:56.9]} 11. Bd2 {[%clk 0:02:45.5]} 11...
Bg4 {[%clk 0:02:55.9]} 12. f3 {[%clk 0:02:36.5]} 12... Bd7 {[%clk 0:02:57.4]}
13. b3 {[%clk 0:02:32.9]} 13... Rfc8 {[%clk 0:02:57.4]} 14. h3 {[%clk
0:02:32.2]} 14... a6 {[%clk 0:02:51.6]} 15. f4 {[%clk 0:02:33.1]} 15... Nc6
{[%clk 0:02:52.6]} 16. Rad1 {[%clk 0:02:17.5]} 16... h5 {[%clk 0:02:40.2]} 17.
Nf3 {[%clk 0:01:57.6]} 17... b5 {[%clk 0:02:27.9]} 18. e4 {[%clk 0:01:51.4]}
18... bxc4 {[%clk 0:02:28.4]} 19. e5 {[%clk 0:01:48.5]} 19... Ne8 {[%clk
0:02:13]} 20. bxc4 {[%clk 0:01:42.6]} 20... Be6 {[%clk 0:00:58.9]} 21. Nd5
{[%clk 0:01:32.9]} 21... Qxa2 {[%clk 0:00:58.9]} 22. Ng5 {[%clk 0:01:09.9]}
22... Bxd5 {[%clk 0:00:32.8]} 23. cxd5 {[%clk 0:01:04.7]} 23... Nd4 {[%clk
0:00:33.5]} 24. Qf2 {[%clk 0:00:59.7]} 24... Nb3 {[%clk 0:00:27.7]} 25. Be4
{[%clk 0:00:44.1]} 25... Nxd2 {[%clk 0:00:22.7]} 26. Rxd2 {[%clk 0:00:46]} 26...
Qa5 {[%clk 0:00:24]} 27. g4 {[%clk 0:00:41.6]} 27... Qc5 {[%clk 0:00:23.4]} 28.
e6 {[%clk 0:00:23.4]} 28... fxe6 {[%clk 0:00:18]} 29. Nxe6 {[%clk 0:00:16]}
29... Qxf2+ {[%clk 0:00:18.7]} 30. Rfxf2 {[%clk 0:00:17.1]} 30... hxg4 {[%clk
0:00:19.2]} 31. hxg4 {[%clk 0:00:18]} 31... Nf6 {[%clk 0:00:19.7]} 32. Bf3
{[%clk 0:00:18.1]} 32... a5 {[%clk 0:00:20.7]} 33. Kg2 {[%clk 0:00:17.9]} 33...
a4 {[%clk 0:00:21.7]} 34. Ra2 {[%clk 0:00:17.4]} 34... a3 {[%clk 0:00:23.1]} 35.
Rfe2 {[%clk 0:00:18.5]} 35... Bh8 {[%clk 0:00:21.4]} 36. Re3 {[%clk 0:00:18.2]}
36... Nd7 {[%clk 0:00:16.3]} 37. Rexa3 {[%clk 0:00:19.2]} 37... Rxa3 {[%clk
0:00:16.8]} 38. Rxa3 {[%clk 0:00:21.1]} 38... Nc5 {[%clk 0:00:18.5]} 39. Ra7
{[%clk 0:00:18.3]} 39... Nxe6 {[%clk 0:00:19]} 40. dxe6 {[%clk 0:00:19.4]} 40...
Kf8 {[%clk 0:00:20.7]} 41. Be4 {[%clk 0:00:16.3]} 41... g5 {[%clk 0:00:18.6]}
42. fxg5 {[%clk 0:00:16.9]} 42... Bd4 {[%clk 0:00:18.7]} 43. Rd7 {[%clk
0:00:16.8]} 43... Be3 {[%clk 0:00:19.3]} 44. g6 {[%clk 0:00:17.6]} 44... Bg5
{[%clk 0:00:20.5]} 45. Kf3 {[%clk 0:00:18]} 45... Kg7 {[%clk 0:00:21.5]} 46. Bf5
{[%clk 0:00:18.9]} 46... Rc4 {[%clk 0:00:22.5]} 47. Ke2 {[%clk 0:00:19.4]} 47...
Rd4 {[%clk 0:00:23.5]} 48. Rd8 {[%clk 0:00:20.1]} 48... Rd2+ {[%clk 0:00:24.6]}
49. Kf3 {[%clk 0:00:20.9]} 49... Rd4 {[%clk 0:00:25.8]} 50. Re8 {[%clk 0:00:22]}
50... Rd2 {[%clk 0:00:26.4]} 51. Ra8 {[%clk 0:00:22]} 51... Rd4 {[%clk
0:00:27.4]} 52. Ra2 {[%clk 0:00:21.7]} 52... Rf4+ {[%clk 0:00:28.6]} 53. Kg3
{[%clk 0:00:21.8]} 53... Rd4 {[%clk 0:00:30]} 54. Ra1 {[%clk 0:00:22.6]} 54...
Rb4 {[%clk 0:00:30.4]} 55. Kf3 {[%clk 0:00:22.7]} 55... Rd4 {[%clk 0:00:31.6]}
56. Rh1 {[%clk 0:00:23.1]} 56... Rf4+ {[%clk 0:00:28.1]} 57. Ke2 {[%clk
0:00:23.3]} 57... Rd4 {[%clk 0:00:28.9]} 58. Rh7+ {[%clk 0:00:24.7]} 58... Kg8
{[%clk 0:00:30.1]} 59. Rf7 {[%clk 0:00:25.8]} 59... Rd2+ {[%clk 0:00:28.5]} 60.
Kf3 {[%clk 0:00:26.7]} 60... Rb2 {[%clk 0:00:27.2]} 61. Rh7 {[%clk 0:00:27.8]}
61... Rb4 {[%clk 0:00:26.1]} 62. Ke2 {[%clk 0:00:28.4]} 62... Rd4 {[%clk
0:00:26.9]} 63. Rh5 {[%clk 0:00:28.8]} 63... Bf6 {[%clk 0:00:27.3]} 64. Ke3
{[%clk 0:00:29.9]} 64... Rb4 {[%clk 0:00:28]} 65. Rh7 {[%clk 0:00:29.8]} 65...
Bg7 {[%clk 0:00:28.9]} 66. Kd3 {[%clk 0:00:30.5]} 66... Rd4+ {[%clk 0:00:29.3]}
67. Kc2 {[%clk 0:00:31.8]} 67... Rc4+ {[%clk 0:00:30.7]} 68. Kd2 {[%clk
0:00:33.1]} 68... Rd4+ {[%clk 0:00:31.7]} 69. Ke2 {[%clk 0:00:34.6]} 69... Rc4
{[%clk 0:00:32.9]} 70. Rh3 {[%clk 0:00:35.7]} 70... Rc3 {[%clk 0:00:34]} 71. Rh5
{[%clk 0:00:36.3]} 71... Rc5 {[%clk 0:00:35.1]} 72. Kd3 {[%clk 0:00:37]} 72...
Rc3+ {[%clk 0:00:36.3]} 73. Kd2 {[%clk 0:00:38.1]} 73... Rc5 {[%clk 0:00:37.7]}
74. Rh3 {[%clk 0:00:38.9]} 74... Bf6 {[%clk 0:00:37.9]} 75. Rb3 {[%clk
0:00:37.4]} 75... Kg7 {[%clk 0:00:38.4]} 76. Rh3 {[%clk 0:00:37.9]} 76... Rd5+
{[%clk 0:00:39.3]} 77. Kc2 {[%clk 0:00:38.8]} 77... Rc5+ {[%clk 0:00:40.8]} 78.
Kb3 {[%clk 0:00:40]} 78... Rc7 {[%clk 0:00:42]} 79. Kb4 {[%clk 0:00:40.9]} 79...
Rc5 {[%clk 0:00:43.1]} 80. Rh7+ {[%clk 0:00:40.7]} 80... Kg8 {[%clk 0:00:44.1]}
81. Rf7 {[%clk 0:00:42.3]} 81... Rc8 {[%clk 0:00:44.2]} 82. Kb5 {[%clk
0:00:42.4]} 82... Rf8 {[%clk 0:00:42.6]} 83. Rh7 {[%clk 0:00:41.2]} 83... Rc8
{[%clk 0:00:42.4]} 84. Kb6 {[%clk 0:00:42.2]} 84... Bg7 {[%clk 0:00:43.3]} 85.
Kb7 {[%clk 0:00:42.4]} 85... Rc5 {[%clk 0:00:43.5]} 86. Rh3 {[%clk 0:00:42.3]}
86... Bf6 {[%clk 0:00:44.3]} 87. Rh7 {[%clk 0:00:43.4]} 87... Bg7 {[%clk
0:00:45.4]} 88. Rh5 {[%clk 0:00:44.1]} 88... Bf6 {[%clk 0:00:46.1]} 89. Rh3
{[%clk 0:00:45.1]} 89... Rc3 {[%clk 0:00:46.7]} 90. Rh1 {[%clk 0:00:45.7]} 90...
Rc5 {[%clk 0:00:44.6]} 91. Rh7 {[%clk 0:00:45.8]} 91... Bg7 {[%clk 0:00:45.3]}
1/2-1/2